[Event "FIDE World Rapid Chess Championship 2021"]
[White "Blohberger, Felix"]
[Black "Dreev, Aleksey"]
[WhiteFideId "1632051"]
[BlackFideId "4100107"]
[WhiteElo "2409"]
[BlackElo "2621"]
[Result "0-1"]
[Round "01"]
[TimeControl "900+10"]
[Date "2021.12.26"]
[WhiteClock "0:00:12"]
[BlackClock "0:01:49"]

1. d4 {[%clk 0:15:17]}  Nf6 {[%clk 0:15:16]} 2. Nf3 {[%clk 0:15:19]}  e6 {[%clk 0:15:08]} 3. Bf4 {[%clk 0:15:26]}  c5 {[%clk 0:14:54]} 4. e3 {[%clk 0:15:32]}  Nc6 {[%clk 0:15:02]} 5. c3 {[%clk 0:15:13]}  Nh5 {[%clk 0:14:52]} 6. Bg5 {[%clk 0:13:49]}  Qb6 {[%clk 0:14:56]} 7. Qb3 {[%clk 0:11:52]}  h6 {[%clk 0:14:42]} 8. Bh4 {[%clk 0:11:54]}  g5 {[%clk 0:14:32]} 9. Bg3 {[%clk 0:12:02]}  Nxg3 {[%clk 0:14:25]} 10. hxg3 {[%clk 0:12:10]}  Bg7 {[%clk 0:13:21]} 11. Be2 {[%clk 0:10:40]}  d5 {[%clk 0:12:10]} 12. g4 {[%clk 0:09:01]}  c4 {[%clk 0:10:43]} 13. Qc2 {[%clk 0:08:38]}  e5 {[%clk 0:10:51]} 14. Nxe5 {[%clk 0:03:36]}  Bxe5 {[%clk 0:10:57]} 15. dxe5 {[%clk 0:03:44]}  Nxe5 {[%clk 0:11:05]} 16. Nd2 {[%clk 0:02:59]}  Bxg4 {[%clk 0:10:38]} 17. Bxg4 {[%clk 0:02:45]}  Nxg4 {[%clk 0:10:46]} 18. Nf3 {[%clk 0:02:02]}  O-O-O {[%clk 0:10:13]} 19. Qf5+ {[%clk 0:01:29]}  Qe6 {[%clk 0:10:20]} 20. Nd4 {[%clk 0:01:37]}  Qxf5 {[%clk 0:09:46]} 21. Nxf5 {[%clk 0:01:45]}  h5 {[%clk 0:09:54]} 22. Rd1 {[%clk 0:01:39]}  Kc7 {[%clk 0:07:44]} 23. Ke2 {[%clk 0:01:10]}  Nf6 {[%clk 0:07:41]} 24. Rd4 {[%clk 0:00:33]}  Rde8 {[%clk 0:07:35]} 25. b3 {[%clk 0:00:19]}  cxb3 {[%clk 0:04:47]} 26. axb3 {[%clk 0:00:27]}  h4 {[%clk 0:04:54]} 27. Rd2 {[%clk 0:00:16]}  Re5 {[%clk 0:04:26]} 28. Nd4 {[%clk 0:00:24]}  g4 {[%clk 0:04:33]} 29. Rc2 {[%clk 0:00:15]}  Ne4 {[%clk 0:03:59]} 30. c4 {[%clk 0:00:23]}  dxc4 {[%clk 0:03:49]} 31. Rxc4+ {[%clk 0:00:31]}  Kb8 {[%clk 0:03:57]} 32. Rh2 {[%clk 0:00:20]}  Nxf2 {[%clk 0:03:23]} 33. g3 {[%clk 0:00:28]}  Nh3 {[%clk 0:02:46]} 34. gxh4 {[%clk 0:00:22]}  Rxh4 {[%clk 0:02:51]} 35. Kd3 {[%clk 0:00:18]}  Rh8 {[%clk 0:02:16]} 36. Rg2 {[%clk 0:00:16]}  f5 {[%clk 0:02:19]} 37. b4 {[%clk 0:00:13]}  Rhe8 {[%clk 0:02:04]} 38. Rg3 {[%clk 0:00:21]}  Nf2+ {[%clk 0:02:02]} 39. Ke2 {[%clk 0:00:30]}  Ne4 {[%clk 0:01:36]} 40. Rg2 {[%clk 0:00:23]}  Nf6 {[%clk 0:01:43]} 41. Nc2 {[%clk 0:00:22]}  Nd5 {[%clk 0:01:42]} 42. Rg3 {[%clk 0:00:29]}  Rh8 {[%clk 0:01:50]} 43. Ne1 {[%clk 0:00:13]}  Rh2+ {[%clk 0:01:36]} 44. Kd3 {[%clk 0:00:17]}  Rh3 {[%clk 0:01:34]} 45. Rxh3 {[%clk 0:00:18]}  gxh3 {[%clk 0:01:43]} 46. Nc2 {[%clk 0:00:12]}  Re4 {[%clk 0:01:49]} 0-1


[Site "http://www.Chess.com"]

[Event "FIDE World Rapid Chess Championship 2021"]
[White "Petrosian, Tigran L."]
[Black "Holm, Kristian Stuvik"]
[WhiteFideId "13301616"]
[BlackFideId "1508083"]
[WhiteElo "2621"]
[BlackElo "2409"]
[Result "1-0"]
[Round "01"]
[TimeControl "900+10"]
[Date "2021.12.26"]
[WhiteClock "0:00:00"]
[BlackClock "0:00:00"]

1. Nf3 {[%clk 0:00:00]}  d5 {[%clk 0:00:00]} 2. g3 {[%clk 0:00:00]}  Nf6 {[%clk 0:00:00]} 3. Bg2 {[%clk 0:00:00]}  c5 {[%clk 0:00:00]} 4. O-O {[%clk 0:00:00]}  Nc6 {[%clk 0:00:00]} 5. d3 {[%clk 0:00:00]}  e5 {[%clk 0:00:00]} 6. Bg5 {[%clk 0:00:00]}  Be7 {[%clk 0:00:00]} 7. Nfd2 {[%clk 0:00:00]}  Be6 {[%clk 0:00:00]} 8. c4 {[%clk 0:00:00]}  d4 {[%clk 0:00:00]} 9. Na3 {[%clk 0:00:00]}  O-O {[%clk 0:00:00]} 10. Nc2 {[%clk 0:00:00]}  h6 {[%clk 0:00:00]} 11. Bxf6 {[%clk 0:00:00]}  Bxf6 {[%clk 0:00:00]} 12. Rb1 {[%clk 0:00:00]}  Be7 {[%clk 0:00:00]} 13. Re1 {[%clk 0:00:00]}  Qd7 {[%clk 0:00:00]} 14. a3 {[%clk 0:00:00]}  a5 {[%clk 0:00:00]} 15. e3 {[%clk 0:00:00]}  dxe3 {[%clk 0:00:00]} 16. Nxe3 {[%clk 0:00:00]}  Qxd3 {[%clk 0:00:00]} 17. Nd5 {[%clk 0:00:00]}  Bxd5 {[%clk 0:00:00]} 18. cxd5 {[%clk 0:00:00]}  Nd4 {[%clk 0:00:00]} 19. Rxe5 {[%clk 0:00:00]}  Bd6 {[%clk 0:00:00]} 20. Re3 {[%clk 0:00:00]}  Qg6 {[%clk 0:00:00]} 21. a4 {[%clk 0:00:00]}  Rfe8 {[%clk 0:00:00]} 22. Nc4 {[%clk 0:00:00]}  f5 {[%clk 0:00:00]} 23. Qd3 {[%clk 0:00:00]}  Qf6 {[%clk 0:00:00]} 24. Rbe1 {[%clk 0:00:00]}  Kf8 {[%clk 0:00:00]} 25. Nb6 {[%clk 0:00:00]}  Rad8 {[%clk 0:00:00]} 26. Rxe8+ {[%clk 0:00:00]}  Rxe8 {[%clk 0:00:00]} 27. Nd7+ {[%clk 0:00:00]}  Kf7 {[%clk 0:00:00]} 28. Rxe8 {[%clk 0:00:00]} 1-0


[Site "http://www.Chess.com"]

[Event "FIDE World Rapid Chess Championship 2021"]
[White "Thybo, Jesper Sondergaard"]
[Black "Santos Latasa, Jaime"]
[WhiteFideId "1438832"]
[BlackFideId "2293307"]
[WhiteElo "2401"]
[BlackElo "2618"]
[Result "1/2-1/2"]
[Round "01"]
[TimeControl "900+10"]
[Date "2021.12.26"]
[WhiteClock "0:04:19"]
[BlackClock "0:03:40"]

1. d4 {[%clk 0:15:17]}  Nf6 {[%clk 0:15:18]} 2. c4 {[%clk 0:15:24]}  e6 {[%clk 0:15:26]} 3. Nf3 {[%clk 0:15:24]}  d5 {[%clk 0:15:35]} 4. g3 {[%clk 0:15:31]}  Bb4+ {[%clk 0:15:36]} 5. Bd2 {[%clk 0:15:38]}  Be7 {[%clk 0:15:44]} 6. Bg2 {[%clk 0:15:44]}  c6 {[%clk 0:15:51]} 7. Qc2 {[%clk 0:15:18]}  b6 {[%clk 0:15:59]} 8. O-O {[%clk 0:15:07]}  Bb7 {[%clk 0:16:07]} 9. Bf4 {[%clk 0:14:15]}  Nbd7 {[%clk 0:16:14]} 10. Rd1 {[%clk 0:13:47]}  Rc8 {[%clk 0:16:21]} 11. Nc3 {[%clk 0:13:19]}  dxc4 {[%clk 0:15:52]} 12. Ne5 {[%clk 0:12:27]}  Nd5 {[%clk 0:15:59]} 13. Nxc4 {[%clk 0:12:15]}  Nxf4 {[%clk 0:16:06]} 14. gxf4 {[%clk 0:12:23]}  O-O {[%clk 0:16:06]} 15. e3 {[%clk 0:12:09]}  Qc7 {[%clk 0:15:41]} 16. Rac1 {[%clk 0:12:13]}  g6 {[%clk 0:12:54]} 17. a3 {[%clk 0:11:30]}  Rfd8 {[%clk 0:12:40]} 18. b4 {[%clk 0:10:47]}  Qb8 {[%clk 0:12:06]} 19. Qb3 {[%clk 0:10:30]}  Ba8 {[%clk 0:11:25]} 20. Ne4 {[%clk 0:09:26]}  Bb7 {[%clk 0:07:26]} 21. Nc3 {[%clk 0:07:20]}  Ba8 {[%clk 0:07:20]} 22. a4 {[%clk 0:06:32]}  b5 {[%clk 0:05:41]} 23. Na5 {[%clk 0:06:07]}  bxa4 {[%clk 0:04:56]} 24. Nxa4 {[%clk 0:06:11]}  Qxb4 {[%clk 0:04:31]} 25. Qxb4 {[%clk 0:05:53]}  Bxb4 {[%clk 0:04:39]} 26. Nxc6 {[%clk 0:05:44]}  Bxc6 {[%clk 0:04:47]} 27. Bxc6 {[%clk 0:05:10]}  Nf6 {[%clk 0:03:27]} 28. Bb7 {[%clk 0:04:45]}  Rb8 {[%clk 0:03:28]} 29. Bf3 {[%clk 0:04:18]}  Rbc8 {[%clk 0:03:23]} 30. Bb7 {[%clk 0:04:22]}  Rb8 {[%clk 0:03:32]} 31. Bf3 {[%clk 0:04:25]}  Rbc8 {[%clk 0:03:40]} 32. Bb7 {[%clk 0:04:19]} 1/2-1/2


[Site "http://www.Chess.com"]

[Event "FIDE World Rapid Chess Championship 2021"]
[White "Heimann, Andreas"]
[Black "Jakubowski, Krzysztof"]
[WhiteFideId "24624632"]
[BlackFideId "1112848"]
[WhiteElo "2616"]
[BlackElo "2399"]
[Result "0-1"]
[Round "01"]
[TimeControl "900+10"]
[Date "2021.12.26"]
[WhiteClock "0:00:18"]
[BlackClock "0:00:41"]

1. d4 {[%clk 0:15:17]}  Nf6 {[%clk 0:15:17]} 2. c4 {[%clk 0:15:25]}  e6 {[%clk 0:15:12]} 3. Nf3 {[%clk 0:15:29]}  d5 {[%clk 0:15:20]} 4. g3 {[%clk 0:15:31]}  dxc4 {[%clk 0:13:47]} 5. Bg2 {[%clk 0:15:39]}  c6 {[%clk 0:13:55]} 6. O-O {[%clk 0:15:17]}  b5 {[%clk 0:13:55]} 7. Nc3 {[%clk 0:13:32]}  Be7 {[%clk 0:11:31]} 8. Ne5 {[%clk 0:13:07]}  Nd5 {[%clk 0:11:18]} 9. a4 {[%clk 0:13:13]}  f6 {[%clk 0:11:08]} 10. Nf3 {[%clk 0:08:35]}  b4 {[%clk 0:09:01]} 11. Nb1 {[%clk 0:08:42]}  a5 {[%clk 0:09:07]} 12. e4 {[%clk 0:08:44]}  Nb6 {[%clk 0:09:12]} 13. Be3 {[%clk 0:08:49]}  O-O {[%clk 0:08:46]} 14. Nbd2 {[%clk 0:07:28]}  Ba6 {[%clk 0:08:31]} 15. Re1 {[%clk 0:07:36]}  N8d7 {[%clk 0:06:52]} 16. Bh3 {[%clk 0:07:36]}  f5 {[%clk 0:06:55]} 17. Qc2 {[%clk 0:07:14]}  b3 {[%clk 0:06:47]} 18. Qb1 {[%clk 0:06:39]}  g6 {[%clk 0:05:08]} 19. d5 {[%clk 0:05:11]}  cxd5 {[%clk 0:05:00]} 20. Nd4 {[%clk 0:05:20]}  Nc5 {[%clk 0:04:18]} 21. exf5 {[%clk 0:02:50]}  exf5 {[%clk 0:04:20]} 22. Nc6 {[%clk 0:01:52]}  Qd7 {[%clk 0:04:00]} 23. Nxe7+ {[%clk 0:01:56]}  Qxe7 {[%clk 0:04:08]} 24. Bd4 {[%clk 0:02:05]}  Qc7 {[%clk 0:03:44]} 25. Nf3 {[%clk 0:02:01]}  Rae8 {[%clk 0:03:26]} 26. Qc1 {[%clk 0:01:45]}  Re4 {[%clk 0:02:50]} 27. Rxe4 {[%clk 0:01:20]}  dxe4 {[%clk 0:02:43]} 28. Ng5 {[%clk 0:01:11]}  Re8 {[%clk 0:01:35]} 29. Bf1 {[%clk 0:00:50]}  h6 {[%clk 0:01:18]} 30. Nh3 {[%clk 0:00:50]}  Kh7 {[%clk 0:01:21]} 31. Nf4 {[%clk 0:00:43]}  Nd3 {[%clk 0:00:55]} 32. Qe3 {[%clk 0:00:38]}  Nd7 {[%clk 0:00:45]} 33. Bxd3 {[%clk 0:00:18]}  cxd3 {[%clk 0:00:51]} 34. Rc1 {[%clk 0:00:48]}  Qd6 {[%clk 0:00:57]} 35. Bc3 {[%clk 0:00:44]}  Rc8 {[%clk 0:00:52]} 36. Kg2 {[%clk 0:00:32]}  Qc5 {[%clk 0:00:45]} 37. Qe1 {[%clk 0:00:19]}  Bb7 {[%clk 0:00:41]} 38. Kh3 {[%clk 0:00:18]}  g5 {[%clk 0:00:41]} 0-1


[Site "http://www.Chess.com"]

[Event "FIDE World Rapid Chess Championship 2021"]
[White "Bellahcene, Bilel"]
[Black "Amin, Bassem"]
[WhiteFideId "696358"]
[BlackFideId "10601457"]
[WhiteElo "2397"]
[BlackElo "2614"]
[Result "1-0"]
[Round "01"]
[TimeControl "900+10"]
[Date "2021.12.26"]
[WhiteClock "0:00:54"]
[BlackClock "0:00:13"]

1. d4 {[%clk 0:15:18]}  Nf6 {[%clk 0:15:17]} 2. c4 {[%clk 0:15:26]}  g6 {[%clk 0:15:03]} 3. Nc3 {[%clk 0:15:34]}  Bg7 {[%clk 0:15:11]} 4. e4 {[%clk 0:15:41]}  d6 {[%clk 0:15:20]} 5. h3 {[%clk 0:15:48]}  O-O {[%clk 0:15:27]} 6. Nf3 {[%clk 0:15:57]}  e5 {[%clk 0:15:33]} 7. d5 {[%clk 0:16:05]}  Na6 {[%clk 0:15:21]} 8. Be3 {[%clk 0:15:47]}  Nh5 {[%clk 0:15:27]} 9. Nh2 {[%clk 0:15:14]}  Qe8 {[%clk 0:15:22]} 10. Be2 {[%clk 0:08:53]}  Nf4 {[%clk 0:13:48]} 11. Bf3 {[%clk 0:09:02]}  f5 {[%clk 0:13:56]} 12. O-O {[%clk 0:07:53]}  g5 {[%clk 0:13:09]} 13. Bxf4 {[%clk 0:07:42]}  exf4 {[%clk 0:10:34]} 14. Re1 {[%clk 0:07:37]}  Nc5 {[%clk 0:09:02]} 15. exf5 {[%clk 0:06:47]}  Qf7 {[%clk 0:08:32]} 16. Bh5 {[%clk 0:04:30]}  Qxf5 {[%clk 0:08:27]} 17. Re7 {[%clk 0:05:05]}  Qf6 {[%clk 0:04:30]} 18. Rxc7 {[%clk 0:04:35]}  Qd8 {[%clk 0:04:06]} 19. Rxg7+ {[%clk 0:03:00]}  Kxg7 {[%clk 0:04:15]} 20. b4 {[%clk 0:03:09]}  Nd7 {[%clk 0:04:12]} 21. Ne4 {[%clk 0:03:17]}  Ne5 {[%clk 0:03:22]} 22. Qd4 {[%clk 0:03:23]}  Bf5 {[%clk 0:03:26]} 23. c5 {[%clk 0:02:19]}  Bxe4 {[%clk 0:02:46]} 24. Qxe4 {[%clk 0:02:29]}  Qf6 {[%clk 0:02:29]} 25. Re1 {[%clk 0:02:36]}  Ng6 {[%clk 0:02:12]} 26. Ng4 {[%clk 0:02:28]}  Qc3 {[%clk 0:02:08]} 27. Bxg6 {[%clk 0:02:07]}  hxg6 {[%clk 0:02:16]} 28. cxd6 {[%clk 0:02:07]}  f3 {[%clk 0:02:06]} 29. d7 {[%clk 0:01:48]}  fxg2 {[%clk 0:02:02]} 30. Re3 {[%clk 0:00:56]}  Qd2 {[%clk 0:01:00]} 31. Qe5+ {[%clk 0:00:52]}  Kh7 {[%clk 0:00:47]} 32. Qe7+ {[%clk 0:00:51]}  Kg8 {[%clk 0:00:38]} 33. Qe6+ {[%clk 0:00:56]}  Kg7 {[%clk 0:00:42]} 34. Kxg2 {[%clk 0:00:56]}  Qxb4 {[%clk 0:00:31]} 35. Qe5+ {[%clk 0:00:58]}  Kh7 {[%clk 0:00:25]} 36. Qxg5 {[%clk 0:01:05]}  Qd6 {[%clk 0:00:16]} 37. Re6 {[%clk 0:00:52]}  Qf4 {[%clk 0:00:11]} 38. Re7+ {[%clk 0:00:45]}  Kh8 {[%clk 0:00:13]} 39. Qh4+ {[%clk 0:00:54]} 1-0


[Site "http://www.Chess.com"]

[Event "FIDE World Rapid Chess Championship 2021"]
[White "Nakamura, Hikaru"]
[Black "Van Foreest, Jorden"]
[WhiteFideId "2016192"]
[BlackFideId "1039784"]
[WhiteElo "2836"]
[BlackElo "2563"]
[Result "1/2-1/2"]
[Round "02"]
[TimeControl "900+10"]
[Date "2021.12.26"]
[WhiteClock "0:00:58"]
[BlackClock "0:02:23"]

1. d4 {[%clk 0:15:18]}  Nf6 {[%clk 0:15:18]} 2. c4 {[%clk 0:15:27]}  e6 {[%clk 0:15:25]} 3. Nc3 {[%clk 0:15:34]}  Bb4 {[%clk 0:15:30]} 4. Qc2 {[%clk 0:15:41]}  O-O {[%clk 0:15:33]} 5. a3 {[%clk 0:15:44]}  Bxc3+ {[%clk 0:15:38]} 6. Qxc3 {[%clk 0:15:52]}  d5 {[%clk 0:15:38]} 7. e3 {[%clk 0:15:55]}  b6 {[%clk 0:15:13]} 8. cxd5 {[%clk 0:16:03]}  Nxd5 {[%clk 0:14:21]} 9. Qc2 {[%clk 0:15:54]}  Ba6 {[%clk 0:14:00]} 10. Bxa6 {[%clk 0:12:37]}  Nxa6 {[%clk 0:14:08]} 11. e4 {[%clk 0:12:45]}  Nf6 {[%clk 0:13:45]} 12. Nf3 {[%clk 0:12:27]}  c5 {[%clk 0:13:17]} 13. e5 {[%clk 0:11:12]}  Nd5 {[%clk 0:11:10]} 14. Qd3 {[%clk 0:11:20]}  Nac7 {[%clk 0:10:17]} 15. dxc5 {[%clk 0:11:06]}  bxc5 {[%clk 0:10:08]} 16. Ng5 {[%clk 0:11:06]}  f5 {[%clk 0:09:52]} 17. exf6 {[%clk 0:11:13]}  Nxf6 {[%clk 0:10:00]} 18. Qxd8 {[%clk 0:11:00]}  Rfxd8 {[%clk 0:10:00]} 19. Bf4 {[%clk 0:10:26]}  Nb5 {[%clk 0:09:06]} 20. O-O {[%clk 0:10:26]}  Nd4 {[%clk 0:09:08]} 21. Rae1 {[%clk 0:10:30]}  Nd5 {[%clk 0:06:35]} 22. Be5 {[%clk 0:10:20]}  Rd7 {[%clk 0:05:08]} 23. Bxd4 {[%clk 0:09:58]}  cxd4 {[%clk 0:05:16]} 24. Nxe6 {[%clk 0:10:06]}  Rb8 {[%clk 0:04:22]} 25. Nc5 {[%clk 0:05:19]}  Rdd8 {[%clk 0:04:30]} 26. Rd1 {[%clk 0:05:12]}  Nf4 {[%clk 0:03:54]} 27. Rd2 {[%clk 0:05:12]}  Rdc8 {[%clk 0:03:10]} 28. Ne4 {[%clk 0:04:30]}  Rb3 {[%clk 0:02:56]} 29. g3 {[%clk 0:03:08]}  Nd3 {[%clk 0:02:55]} 30. Kg2 {[%clk 0:03:08]}  Re8 {[%clk 0:02:55]} 31. Re2 {[%clk 0:03:08]}  Kf8 {[%clk 0:02:55]} 32. Rd1 {[%clk 0:03:08]}  a5 {[%clk 0:02:55]} 33. Kf1 {[%clk 0:01:27]}  a4 {[%clk 0:01:16]} 34. h4 {[%clk 0:01:27]}  h6 {[%clk 0:01:39]} 35. Nd2 {[%clk 0:01:27]}  Rxb2 {[%clk 0:01:39]} 36. Rxe8+ {[%clk 0:01:27]}  Kxe8 {[%clk 0:01:39]} 37. Nc4 {[%clk 0:00:26]}  Rxf2+ {[%clk 0:01:10]} 38. Kg1 {[%clk 0:00:26]}  Rc2 {[%clk 0:01:10]} 39. Nd6+ {[%clk 0:00:26]}  Kd7 {[%clk 0:01:10]} 40. Rxd3 {[%clk 0:00:26]}  Kxd6 {[%clk 0:01:10]} 41. Rxd4+ {[%clk 0:00:26]}  Ke5 {[%clk 0:01:10]} 42. Rxa4 {[%clk 0:00:26]}  Ra2 {[%clk 0:01:10]} 43. h5 {[%clk 0:00:26]}  Kf5 {[%clk 0:01:10]} 44. Kf1 {[%clk 0:00:26]}  Kg5 {[%clk 0:01:10]} 45. g4 {[%clk 0:00:26]}  Kf6 {[%clk 0:01:03]} 46. Ke1 {[%clk 0:00:42]}  Ke5 {[%clk 0:01:03]} 47. Kd1 {[%clk 0:00:42]}  Rg2 {[%clk 0:01:03]} 48. Kc1 {[%clk 0:00:42]}  Kd5 {[%clk 0:01:03]} 49. Rf4 {[%clk 0:00:42]}  Ke5 {[%clk 0:01:03]} 50. Rb4 {[%clk 0:00:42]}  Kd5 {[%clk 0:01:03]} 51. a4 {[%clk 0:00:42]}  Kc5 {[%clk 0:01:03]} 52. Rf4 {[%clk 0:00:42]}  Re2 {[%clk 0:01:03]} 53. a5 {[%clk 0:00:42]}  Kb5 {[%clk 0:00:13]} 54. Rf7 {[%clk 0:00:58]}  Kxa5 {[%clk 0:00:13]} 55. Rxg7 {[%clk 0:00:58]}  Kb4 {[%clk 0:00:13]} 56. Rg6 {[%clk 0:00:58]}  Re4 {[%clk 0:00:13]} 57. Kd2 {[%clk 0:00:58]}  Kc4 {[%clk 0:00:13]} 58. g5 {[%clk 0:00:58]}  hxg5 {[%clk 0:00:13]} 59. Rxg5 {[%clk 0:00:58]}  Kd4 {[%clk 0:00:13]} 60. Ra5 {[%clk 0:00:58]}  Re8 {[%clk 0:00:13]} 61. h6 {[%clk 0:00:58]}  Rh8 {[%clk 0:00:13]} 62. Rh5 {[%clk 0:00:58]}  Ke4 {[%clk 0:00:13]} 63. Kc3 {[%clk 0:00:58]}  Kf4 {[%clk 0:00:13]} 64. Kd4 {[%clk 0:00:58]}  Kg4 {[%clk 0:00:13]} 65. Rh1 {[%clk 0:00:58]}  Kf5 {[%clk 0:00:13]} 66. Kd5 {[%clk 0:00:58]}  Kg6 {[%clk 0:00:13]} 67. Ke6 {[%clk 0:01:05]}  Rxh6 {[%clk 0:01:50]} 68. Rg1+ {[%clk 0:01:03]}  Kh7+ {[%clk 0:00:13]} 69. Kf7 {[%clk 0:00:58]}  Rh2 {[%clk 0:02:07]} 70. Rg7+ {[%clk 0:01:31]}  Kh6 {[%clk 0:02:15]} 71. Rg6+ {[%clk 0:01:30]}  Kh7 {[%clk 0:00:13]} 72. Rg7+ {[%clk 0:00:58]}  Kh6 {[%clk 0:00:13]} 73. Rg6+ {[%clk 0:00:58]}  Kh7 {[%clk 0:02:23]} 1/2-1/2


[Site "http://www.Chess.com"]

[Event "FIDE World Rapid Chess Championship 2021"]
[White "Vakhidov, Jakhongir"]
[Black "Duda, Jan-Krzysztof"]
[WhiteFideId "14201801"]
[BlackFideId "1170546"]
[WhiteElo "2566"]
[BlackElo "2801"]
[Result "0-1"]
[Round "02"]
[TimeControl "900+10"]
[Date "2021.12.26"]
[WhiteClock "0:00:32"]
[BlackClock "0:02:47"]

1. c4 {[%clk 0:15:16]}  e5 {[%clk 0:15:10]} 2. Nc3 {[%clk 0:15:21]}  Nc6 {[%clk 0:15:10]} 3. Nf3 {[%clk 0:15:28]}  g6 {[%clk 0:14:09]} 4. d4 {[%clk 0:15:36]}  exd4 {[%clk 0:14:17]} 5. Nxd4 {[%clk 0:15:44]}  Bg7 {[%clk 0:14:25]} 6. Nxc6 {[%clk 0:15:52]}  dxc6 {[%clk 0:14:21]} 7. Qxd8+ {[%clk 0:15:09]}  Kxd8 {[%clk 0:14:21]} 8. e4 {[%clk 0:15:09]}  Be6 {[%clk 0:14:21]} 9. Bf4 {[%clk 0:15:09]}  a5 {[%clk 0:13:05]} 10. O-O-O {[%clk 0:14:37]}  Kc8 {[%clk 0:13:14]} 11. Be2 {[%clk 0:14:32]}  a4 {[%clk 0:12:45]} 12. Kc2 {[%clk 0:14:40]}  Nf6 {[%clk 0:11:16]} 13. Be5 {[%clk 0:14:20]}  Ra5 {[%clk 0:11:24]} 14. f4 {[%clk 0:14:21]}  a3 {[%clk 0:11:00]} 15. b4 {[%clk 0:14:40]}  Rxe5 {[%clk 0:12:46]} 16. fxe5 {[%clk 0:14:40]}  Nd7 {[%clk 0:12:46]} 17. Nb1 {[%clk 0:14:05]}  c5 {[%clk 0:11:24]} 18. b5 {[%clk 0:11:08]}  Bxe5 {[%clk 0:10:32]} 19. Kb3 {[%clk 0:11:14]}  c6 {[%clk 0:10:23]} 20. Nxa3 {[%clk 0:11:19]}  Kc7 {[%clk 0:10:29]} 21. h3 {[%clk 0:09:20]}  h5 {[%clk 0:09:11]} 22. Rhf1 {[%clk 0:06:38]}  Ra8 {[%clk 0:05:27]} 23. Rf3 {[%clk 0:06:44]}  Ra5 {[%clk 0:05:08]} 24. Kc2 {[%clk 0:04:14]}  Nf6 {[%clk 0:05:09]} 25. Rb3 {[%clk 0:03:09]}  Nxe4 {[%clk 0:05:10]} 26. Bf3 {[%clk 0:02:25]}  Nd6 {[%clk 0:03:47]} 27. bxc6 {[%clk 0:03:09]}  bxc6 {[%clk 0:04:08]} 28. g4 {[%clk 0:03:09]}  Nxc4 {[%clk 0:03:11]} 29. Nxc4 {[%clk 0:01:50]}  Bxc4 {[%clk 0:03:12]} 30. Kb1 {[%clk 0:01:50]}  Bxb3 {[%clk 0:03:12]} 31. axb3 {[%clk 0:01:50]}  Ra3 {[%clk 0:03:12]} 32. Kc2 {[%clk 0:01:50]}  c4 {[%clk 0:03:12]} 33. Rb1 {[%clk 0:00:32]}  Ra2+ {[%clk 0:02:47]} 34. Kd1 {[%clk 0:00:32]}  c3 {[%clk 0:02:47]} 35. Be4 {[%clk 0:00:32]}  Rd2+ {[%clk 0:02:47]} 36. Ke1 {[%clk 0:00:32]}  Bg3+ {[%clk 0:02:47]} 0-1


[Site "http://www.Chess.com"]

[Event "FIDE World Rapid Chess Championship 2021"]
[White "Caruana, Fabiano"]
[Black "Theodorou, Nikolas"]
[WhiteFideId "2020009"]
[BlackFideId "4262875"]
[WhiteElo "2770"]
[BlackElo "2559"]
[Result "1-0"]
[Round "02"]
[TimeControl "900+10"]
[Date "2021.12.26"]
[WhiteClock "0:09:05"]
[BlackClock "0:03:27"]

1. e4 {[%clk 0:15:19]}  e5 {[%clk 0:15:18]} 2. Nf3 {[%clk 0:15:27]}  Nc6 {[%clk 0:15:26]} 3. Bb5 {[%clk 0:15:35]}  Nge7 {[%clk 0:15:32]} 4. Nc3 {[%clk 0:15:35]}  a6 {[%clk 0:15:24]} 5. Bc4 {[%clk 0:15:40]}  d6 {[%clk 0:15:31]} 6. d4 {[%clk 0:13:46]}  Nxd4 {[%clk 0:15:37]} 7. Nxd4 {[%clk 0:13:55]}  exd4 {[%clk 0:15:46]} 8. Qxd4 {[%clk 0:14:03]}  Be6 {[%clk 0:15:54]} 9. Bb3 {[%clk 0:13:59]}  c5 {[%clk 0:14:52]} 10. Qd3 {[%clk 0:14:07]}  b5 {[%clk 0:15:00]} 11. Bxe6 {[%clk 0:14:08]}  fxe6 {[%clk 0:15:08]} 12. Bg5 {[%clk 0:14:03]}  Qd7 {[%clk 0:10:44]} 13. O-O {[%clk 0:14:10]}  Nc6 {[%clk 0:08:48]} 14. Rad1 {[%clk 0:14:06]}  Ne5 {[%clk 0:08:55]} 15. Qg3 {[%clk 0:12:53]}  Nf7 {[%clk 0:08:40]} 16. Be3 {[%clk 0:12:47]}  b4 {[%clk 0:07:09]} 17. Ne2 {[%clk 0:12:42]}  Qc6 {[%clk 0:05:40]} 18. Qg4 {[%clk 0:12:28]}  Kd7 {[%clk 0:05:48]} 19. c3 {[%clk 0:11:24]}  a5 {[%clk 0:05:43]} 20. Nf4 {[%clk 0:10:45]}  Re8 {[%clk 0:05:33]} 21. cxb4 {[%clk 0:10:24]}  Ne5 {[%clk 0:05:32]} 22. Qh5 {[%clk 0:10:17]}  g5 {[%clk 0:04:52]} 23. Nh3 {[%clk 0:09:10]}  axb4 {[%clk 0:04:45]} 24. Nxg5 {[%clk 0:09:17]}  Kc7 {[%clk 0:03:54]} 25. Bf4 {[%clk 0:09:14]}  Bg7 {[%clk 0:03:27]} 26. Nf7 {[%clk 0:08:38]}  Qxe4 {[%clk 0:00:34]} 27. Nxd6 {[%clk 0:08:45]}  Qxf4 {[%clk 0:00:41]} 28. Nxe8+ {[%clk 0:08:54]}  Rxe8 {[%clk 0:00:48]} 29. Qxe8 {[%clk 0:08:47]}  Nf3+ {[%clk 0:03:27]} 30. gxf3 {[%clk 0:08:38]}  Be5 {[%clk 0:03:27]} 31. Rd7+ {[%clk 0:09:05]} 1-0


[Site "http://www.Chess.com"]